fUSD/lending_fUSD_20241210
["ID","MTS","AMOUNT","RATE_DAILY","PERIOD"]
[344843669,1733827887321,-2595.03,0.00010999,2]
[344843670,1733827887331,-2595.03,0.00010999,2]
[344843671,1733827887341,-2595.22,0.00010999,2]
[344843672,1733827887350,-500.0,0.00010999,2]
[344843673,1733827887360,-500.0,0.00010999,2]
[344843674,1733827887370,-500.0,0.00010999,2]
[344843675,1733827887379,-500.0,0.00010999,2]
[344843676,1733827887388,-500.0,0.00010999,2]
[344843677,1733827887398,-1754.24463101,0.00010999,2]
[344843678,1733827887407,-8381.39101495,0.00010999,2]
[344843679,1733827887417,-79299.00129471,0.00011,2]
[344843680,1733827887427,-330.15817312,0.00011,2]
[344843681,1733827887436,-310226.43716903,0.00011,2]
[344843682,1733827887446,-5416.789,0.00011,5]
[344843683,1733827887456,-1000.0,0.00011,2]
[344843684,1733827887466,-1974.27016362,0.00011,2]
[344843685,1733827887475,-200.0,0.00011011,2]
[344843686,1733827887487,-1000.0,0.00011045,2]
[344843687,1733827887497,-1000.0,0.00011045,2]
[344843688,1733827887506,-1000.0,0.00011045,2]
[344843689,1733827887515,-1000.0,0.00011045,2]
[344843690,1733827887524,-1000.0,0.00011045,2]
[344843691,1733827887534,-1000.0,0.00011045,2]
[344843692,1733827887543,-1000.0,0.00011045,2]
[344843693,1733827887552,-1000.0,0.00011045,2]
[344843694,1733827887562,-1000.0,0.00011045,2]
[344843695,1733827887574,-1000.0,0.00011045,2]
[344843696,1733827887583,-1000.0,0.00011045,2]
[344843697,1733827887592,-1000.0,0.00011045,2]
[344843698,1733827887603,-1000.0,0.00011045,2]
[344843699,1733827887612,-1000.0,0.00011045,2]
[344843700,1733827887622,-1000.0,0.00011045,2]
[344843701,1733827887631,-1000.0,0.00011045,2]
[344843702,1733827887642,-963.0949,0.00011045,2]
[344843703,1733827887652,-952.0,0.00011068,2]
[344843704,1733827887661,-1262.0,0.0001109,2]
[344843705,1733827887671,-570.149,0.0001109,2]
[344843706,1733827887680,-2005.0,0.0001109,2]
[344843707,1733827887690,-634.123,0.0001109,2]
[344843708,1733827887699,-150.0,0.0001109,2]
[344843709,1733827887708,-564.0,0.0001109,2]
[344843710,1733827887717,-1894.0,0.0001109,2]
[344843711,1733827887727,-817.0,0.0001109,2]
[344843712,1733827887740,-3763.0,0.0001109,2]
[344843713,1733827887749,-1253.0,0.0001109,2]
[344843714,1733827887759,-536.565,0.0001109,2]
[344843715,1733827887768,-3595.0,0.0001109,2]
[344843716,1733827887778,-973.0,0.0001109,2]
[344843717,1733827887787,-250.0,0.0001109,2]
[344843718,1733827887796,-1167.0,0.0001109,2]
[344843719,1733827887806,-12875.798,0.0001109,2]
[344843720,1733827887815,-5967.0,0.0001109,2]
[344843721,1733827887825,-273.442,0.0001109,2]
[344843722,1733827887835,-167.0,0.0001109,2]
[344843723,1733827887844,-227.0,0.0001109,2]
[344843724,1733827887853,-974.91,0.00011096,2]
[344843725,1733827887863,-974.91,0.00011096,2]
[344843726,1733827887872,-974.91,0.00011096,2]
[344843727,1733827887881,-973.89,0.00011096,2]
[344843728,1733827887890,-727.63,0.00011096,2]
[344843729,1733827887899,-500.0,0.00011098,2]
[344843730,1733827887908,-500.0,0.00011098,3]
[344843731,1733827887917,-500.0,0.00011098,3]
[344843732,1733827887927,-500.0,0.00011098,3]
[344843733,1733827887936,-500.0,0.00011098,3]
[344843734,1733827887945,-500.0,0.00011098,3]
[344843735,1733827887954,-500.0,0.00011098,2]
[344843736,1733827887963,-500.0,0.00011098,2]
[344843737,1733827887974,-500.0,0.00011098,2]
[344843738,1733827887987,-500.0,0.00011098,2]
[344843739,1733827887996,-500.0,0.00011098,2]
[344843740,1733827888006,-500.0,0.00011098,2]
[344843741,1733827888015,-500.0,0.00011098,2]
[344843742,1733827888024,-500.0,0.00011098,2]
[344843743,1733827888034,-500.0,0.00011098,2]
[344843744,1733827888043,-500.0,0.00011098,2]
[344843745,1733827888052,-501.06400143,0.00011098,2]
[344843746,1733827888062,-500.0,0.00011098,3]
[344843747,1733827888071,-500.0,0.00011098,3]
[344843748,1733827888081,-500.0,0.00011098,3]
[344843749,1733827888090,-500.0,0.00011098,3]
[344843750,1733827888099,-500.0,0.00011098,3]
[344843751,1733827888108,-500.0,0.00011098,3]
[344843752,1733827888118,-500.0,0.00011098,3]
[344843753,1733827888128,-500.0,0.00011098,3]
[344843754,1733827888137,-500.0,0.00011098,3]
[344843755,1733827888147,-500.0,0.00011098,3]
[344843756,1733827888156,-500.0,0.00011098,3]
[344843757,1733827888166,-500.0,0.00011098,3]
[344843758,1733827888175,-500.0,0.00011098,3]
[344843759,1733827888184,-500.0,0.00011098,3]
[344843760,1733827888194,-500.0,0.00011098,3]
[344843761,1733827888203,-500.0,0.00011098,3]
[344843762,1733827888213,-500.0,0.00011098,3]
[344843763,1733827888222,-500.0,0.00011098,3]
[344843764,1733827888233,-500.0,0.00011098,3]
[344843765,1733827888242,-500.0,0.00011098,3]
[344843766,1733827888252,-500.0,0.00011098,3]
[344843767,1733827888261,-500.0,0.00011098,3]
[344843768,1733827888270,-500.0,0.00011098,3]
[344843769,1733827888280,-500.0,0.00011098,3]
[344843770,1733827888289,-500.0,0.00011098,3]
[344843771,1733827888409,-500.0,0.00011098,2]
[344843772,1733827888419,-500.0,0.00011098,2]
[344843773,1733827888429,-500.0,0.00011098,2]
[344843774,1733827888439,-500.0,0.00011098,2]
[344843775,1733827888449,-500.0,0.00011098,2]
[344843776,1733827888458,-500.0,0.00011098,2]
[344843777,1733827888467,-501.42599187,0.00011098,2]
[344843778,1733827888476,-500.0,0.00011098,2]
[344843779,1733827888487,-500.0,0.00011098,2]
[344843780,1733827888496,-501.58296553,0.00011098,2]
[344843781,1733827888505,-206.20593026,0.00011098,2]
[344843782,1733827888515,-500.0,0.00011098,2]
[344843783,1733827888524,-500.65450696,0.00011098,2]
[344843784,1733827888533,-500.0,0.00011098,2]
[344843785,1733827888543,-158.35115836,0.00011098,2]
[344843786,1733827888553,-500.7137814,0.00011098,2]
[344843787,1733827888564,-503.87076295,0.00011098,2]
[344843788,1733827888573,-500.0,0.00011098,2]
[344843789,1733827888582,-390.59641502,0.00011098,2]
[344843790,1733827888592,-150.06689548,0.00011098,2]
[344843791,1733827888602,-500.0,0.00011098,2]
[344843792,1733827888611,-500.86221362,0.00011098,2]
[344843793,1733827888620,-500.0,0.00011098,2]
[344843794,1733827888630,-500.0,0.00011098,2]
[344843795,1733827888640,-500.0,0.00011098,2]
[344843796,1733827888649,-500.0,0.00011098,2]
[344843797,1733827888659,-503.35615896,0.00011098,2]
[344843798,1733827888668,-500.0,0.00011098,2]
[344843799,1733827888678,-500.0,0.00011098,2]
[344843800,1733827888687,-500.0,0.00011098,2]
[344843801,1733827888696,-500.0,0.00011098,2]
[344843802,1733827888706,-503.00773955,0.00011098,2]
[344843803,1733827888715,-2913.82,0.00011098,2]
[344843804,1733827888724,-2913.82,0.00011098,2]
[344843805,1733827888735,-2913.82,0.00011098,2]
[344843806,1733827888745,-2913.82,0.00011098,2]
[344843807,1733827888754,-2913.82,0.00011098,2]
[344843808,1733827888763,-2913.82,0.00011098,2]
[344843809,1733827888773,-2913.82,0.00011098,2]
[344843810,1733827888782,-2913.82,0.00011098,2]
[344843811,1733827888791,-2913.82,0.00011098,2]
[344843812,1733827888800,-2913.82,0.00011098,2]
[344843813,1733827888810,-2913.82,0.00011098,2]
[344843814,1733827888819,-2913.82,0.00011098,2]
[344843815,1733827888828,-2913.82,0.00011098,2]
[344843816,1733827888838,-2913.82,0.00011098,2]
[344843817,1733827888847,-2913.82,0.00011098,2]
[344843818,1733827888856,-2913.82,0.00011098,2]
[344843819,1733827888866,-2913.82,0.00011098,2]
[344843820,1733827888875,-2913.82,0.00011098,2]
[344843821,1733827888884,-2913.82,0.00011098,2]
[344843822,1733827888893,-2913.82,0.00011098,2]
[344843823,1733827888903,-2913.82,0.00011098,2]
[344843824,1733827888912,-2913.82,0.00011098,2]
[344843825,1733827888921,-2913.82,0.00011098,2]
[344843826,1733827888931,-2913.82657172,0.00011098,2]
[344843827,1733827888940,-500.0,0.00011098,2]
[344843828,1733827888949,-501.17871575,0.00011098,2]
[344843829,1733827888958,-500.0,0.00011098,2]
[344843830,1733827888967,-500.0,0.00011098,2]
[344843831,1733827888976,-500.0,0.00011098,2]
[344843832,1733827888988,-500.0,0.00011098,2]
[344843833,1733827888997,-504.91059203,0.00011098,2]
[344843834,1733827889006,-500.0,0.00011098,2]
[344843835,1733827889016,-503.13522173,0.00011098,2]
[344843836,1733827889025,-500.0,0.00011098,2]
[344843837,1733827889035,-364.49012574,0.00011098,2]
[344843838,1733827889043,-320.75759048,0.00011098,2]
[344843839,1733827889052,-500.0,0.00011098,2]
[344843840,1733827889062,-200.0,0.00011098,2]
[344843841,1733827889071,-200.0,0.00011098,2]
[344843842,1733827889081,-200.0,0.00011098,2]
[344843843,1733827889090,-200.0,0.00011098,2]
[344843844,1733827889099,-200.0,0.00011098,3]
[344843845,1733827889109,-200.0,0.00011098,3]
[344843846,1733827889118,-200.0,0.00011098,3]
[344843847,1733827889127,-200.0,0.00011098,3]
[344843848,1733827889137,-3807.08230771,0.00011099,2]
[344843849,1733827889146,-8601.9842628,0.00011099,2]
[344843850,1733827889155,-60770.23527242,0.00011099,2]
[344843851,1733827889165,-2536.4468713,0.00011099,2]
[344843852,1733827889174,-5281813.12263878,0.000111,2]
[344843853,1733827889186,-226377.11246475,0.000111,2]
[344843854,1733827889204,-5419297.29193708,0.000111,2]
[344843855,1733827889915,-500.0,0.00010995,2]
[344843856,1733827889926,-1571.76,0.00010997,2]
[344843857,1733827889935,-11839.7345,0.000111,2]
[344843858,1733827890044,-460.85627473,0.00010995,2]
[344843859,1733827890055,-39.14372527,0.00010995,2]
[344843860,1733827890065,-500.0,0.00010995,2]
[344843861,1733827890075,-500.0,0.00010995,2]
[344843862,1733827890504,-500.0,0.00010995,2]
[344843863,1733827890526,-500.0,0.00010995,2]
[344843864,1733827890547,-1571.76,0.00010997,2]
[344843865,1733827890558,-1571.76,0.00010997,2]
[344843866,1733827890571,-1571.76,0.00010997,2]
[344843867,1733827890581,-1571.76,0.00010997,2]
[344843868,1733827890591,-1571.76,0.00010997,2]
[344843869,1733827890602,-31024.13114532,0.000111,2]
[344843870,1733827890979,-974.91,0.000106,2]
[344843871,1733827890994,-2500.0,0.00010759,2]
[344843872,1733827891011,-500.0,0.00010958,2]
[344843873,1733827891021,-500.0,0.00010995,2]
[344843874,1733827891031,-500.0,0.00010995,2]
[344843875,1733827891047,-500.0,0.00010995,2]
[344843876,1733827891057,-500.0,0.00010995,2]
[344843877,1733827891066,-500.0,0.00010995,2]
[344843878,1733827891076,-493.44919304,0.00010995,2]
[344843879,1733827891086,-500.0,0.00010996,2]
[344843880,1733827891096,-500.0,0.00010996,2]
[344843881,1733827891105,-318.36,0.00010996,2]
[344843882,1733827891114,-187.98219335,0.00010996,2]
[344843883,1733827891123,-331.44012911,0.00010996,2]
[344843884,1733827891135,-19.05048708,0.00010996,2]
[344843885,1733827891144,-185.62146626,0.00010996,2]
[344843886,1733827891154,-500.0,0.00010996,2]
[344843887,1733827891163,-239.13585771,0.00010996,2]
[344843888,1733827891172,-1571.76,0.00010997,2]
[344843889,1733827891181,-1571.76,0.00010997,2]
[344843890,1733827891191,-500.0,0.00010997,2]
[344843891,1733827891200,-150.0,0.0001109,2]
[344843892,1733827891209,-495712.67218895,0.000111,2]
[344843893,1733827891221,-17209.36456298,0.000111,2]
[344843894,1733827891249,-500.0,0.00010996,2]
[344843895,1733827891259,-99.58717634,0.000111,2]
[344843896,1733827891270,-1251.40433355,0.000111,2]
[344843897,1733827891281,-360.48464494,0.000111,2]
[344843898,1733827891292,-1759.99999993,0.000111,2]
[344843899,1733827891303,-1644.10352997,0.000111,2]
[344843900,1733827891658,-397.09,0.00010958,2]
[344843901,1733827891669,-500.0,0.00010996,2]
[344843902,1733827891678,-500.0,0.00010996,2]
[344843903,1733827891687,-500.0,0.00010997,2]
[344843904,1733827891697,-333.12,0.00010997,2]
[344843905,1733827891706,-232.35067723,0.00010997,2]
[344843906,1733827891715,-1098.0,0.0001109,2]
[344843907,1733827891725,-2412.50306137,0.000111,2]
[344843908,1733827891770,-2135.15452673,0.000111,2]
[344843910,1733828233459,10000.0,6e-05,2]
[344843913,1733828526459,317.83323571,5.97e-05,2]
[344843914,1733828993215,72674.16981249,6e-05,2]
[344843925,1733829031609,-492.35,8.219e-05,2]
[344843926,1733829031620,-186.82,9.687e-05,2]
[344843927,1733829031631,-300.0,9.73e-05,2]
[344843928,1733829031646,-18670.53,9.731e-05,2]
[344843929,1733829031658,-602.17,9.776e-05,2]
[344843930,1733829031669,-250.0,9.864e-05,2]
[344843931,1733829031680,-250.0,9.946e-05,2]
[344843932,1733829031692,-150.0,9.999e-05,2]
[344843933,1733829031703,-980.21,0.00010019,2]
[344843934,1733829031714,-198.96,0.00010033,2]
[344843935,1733829031725,-1007.48,0.00010034,2]
[344843936,1733829031737,-1018.33,0.00010034,2]
[344843937,1733829031748,-991.33,0.00010034,2]
[344843938,1733829031759,-1013.4,0.00010034,2]
[344843939,1733829031770,-983.73,0.00010034,2]
[344843940,1733829031781,-1018.43,0.00010034,2]
[344843941,1733829031791,-1004.97,0.00010035,2]
[344843942,1733829031802,-1000.0,0.00010035,2]
[344843943,1733829031813,-300.0,0.00010044,2]
[344843944,1733829031824,-150.0,0.00010236,2]
[344843945,1733829031835,-492.35,0.00010456,2]
[344843946,1733829031846,-323.065,0.0001055,2]
[344843947,1733829031856,-3595.0,0.00010587,2]
[344843948,1733829031867,-973.0,0.00010587,2]
[344843949,1733829031878,-7086.89265392,0.0001059,2]
[344843950,1733829031901,-456.16000023,0.0001059,2]
[344843951,1733829031923,-5332.74534585,0.0001059,2]
[344843953,1733829031935,-3312.76465415,0.0001059,2]
[344843993,1733829037722,-1990.36293394,0.0001059,2]
[344843994,1733829037735,-663.87241191,0.0001059,2]
[344843995,1733829037744,-273.442,0.0001059,2]
[344843996,1733829037753,-1167.0,0.0001059,2]
[344843997,1733829037763,-238.22,0.00010752,2]
[344843998,1733829037772,-435.44,0.00010759,2]
[344843999,1733829037782,-1476.0,0.000108,2]
[344844000,1733829037792,-302.7,0.00010839,2]
[344844001,1733829037802,-411.7226,0.00010858,2]
[344844002,1733829037812,-1001.93534769,0.00010892,2]
[344844003,1733829037821,-5000.0,0.00010893,2]
[344844004,1733829037831,-161.12844201,0.00010894,2]
[344844005,1733829037840,-3752.8,0.00010897,2]
[344844006,1733829037850,-263.85317035,0.000109,2]
[344844007,1733829037860,-5000.3648607,0.000109,2]
[344844008,1733829037870,-263.85317033,0.0001095,2]
[344844009,1733829037880,-1981.73540506,0.00010957,2]
[344844010,1733829037893,-226.21759494,0.00010957,2]
[344844011,1733829037906,-179.484,0.00010957,2]
[344844012,1733829037917,-641.90434435,0.00010958,2]
[344844013,1733829037926,-500.0,0.00010958,2]
[344844014,1733829037937,-500.0,0.00010958,2]
[344844015,1733829037949,-578.25412649,0.00010958,2]
[344844016,1733829037959,-500.0,0.00010958,2]
[344844017,1733829037969,-500.0,0.00010958,2]
[344844018,1733829037978,-500.0,0.00010958,2]
[344844019,1733829037990,-500.0,0.00010958,2]
[344844020,1733829038000,-501.65131732,0.00010958,2]
[344844021,1733829038010,-591.45365784,0.00010958,2]
[344844022,1733829038021,-504.40650971,0.00010958,2]
[344844023,1733829038030,-359.47476242,0.00010958,2]
[344844024,1733829038040,-500.0,0.00010958,2]
[344844025,1733829038050,-524.64671224,0.00010958,2]
[344844026,1733829038060,-500.0,0.00010958,2]
[344844027,1733829038070,-362.12380714,0.00010958,2]
[344844028,1733829038080,-500.0,0.00010958,2]
[344844030,1733829038089,-415.40112467,0.00010958,2]
[344844031,1733829038098,-500.0,0.00010958,2]
[344844032,1733829038107,-500.0,0.00010958,2]
[344844033,1733829038117,-500.0,0.00010958,2]
[344844034,1733829038127,-500.0,0.00010958,2]
[344844035,1733829038136,-500.0,0.00010958,2]
[344844036,1733829038145,-500.0,0.00010958,2]
[344844037,1733829038160,-500.0,0.00010958,2]
[344844038,1733829038170,-500.0,0.00010958,2]
[344844039,1733829038179,-500.0,0.00010958,2]
[344844040,1733829038189,-501.69338046,0.00010958,2]
[344844041,1733829038198,-500.0,0.00010958,2]
[344844042,1733829038208,-500.0,0.00010958,2]
[344844043,1733829038218,-500.0,0.00010958,2]
[344844044,1733829038227,-500.0,0.00010958,2]
[344844045,1733829038236,-500.0,0.00010958,2]
[344844046,1733829038246,-608.69,0.00010958,2]
[344844047,1733829038256,-500.0,0.00010958,2]
[344844048,1733829038265,-503.14059115,0.00010958,2]
[344844049,1733829038275,-500.0,0.00010958,2]
[344844050,1733829038284,-500.0,0.00010958,2]
[344844051,1733829038294,-62.25807127,0.00010958,2]
[344844052,1733829038328,-437.74192873,0.00010958,2]
[344844053,1733829038337,-500.0,0.00010958,2]
[344844054,1733829038348,-508.73212241,0.00010958,2]
[344844055,1733829038357,-500.0,0.00010958,2]
[344844056,1733829038367,-500.0,0.00010958,2]
[344844057,1733829038376,-500.0,0.00010958,2]
[344844058,1733829038386,-500.0,0.00010958,2]
[344844059,1733829038396,-500.0,0.00010958,2]
[344844060,1733829038408,-501.29152167,0.00010958,2]
[344844061,1733829038417,-500.0,0.00010958,2]
[344844062,1733829038427,-548.31,0.00010958,2]
[344844063,1733829038437,-500.0,0.00010958,2]
[344844064,1733829038446,-500.0,0.00010958,2]
[344844065,1733829038456,-500.0,0.00010958,2]
[344844066,1733829038466,-500.0,0.00010958,2]
[344844067,1733829038475,-500.0,0.00010958,2]
[344844068,1733829038485,-500.0,0.00010958,2]
[344844069,1733829038494,-500.0,0.00010958,2]
[344844070,1733829038504,-500.0,0.00010958,2]
[344844071,1733829038514,-500.0,0.00010958,2]
[344844072,1733829038523,-500.0,0.00010958,2]
[344844073,1733829038533,-500.0,0.00010958,2]
[344844074,1733829038543,-226.33112779,0.00010958,2]
[344844075,1733829038552,-727.78,0.00010958,2]
[344844076,1733829038561,-500.0,0.00010958,2]
[344844077,1733829038571,-499.93819273,0.00010958,2]
[344844078,1733829038580,-500.0,0.00010958,2]
[344844079,1733829038590,-500.0,0.00010958,2]
[344844080,1733829038599,-500.0,0.00010958,2]
[344844081,1733829038609,-500.23073255,0.00010958,2]
[344844082,1733829038619,-500.0,0.00010958,2]
[344844083,1733829038629,-500.0,0.00010958,2]
[344844084,1733829038638,-500.0,0.00010958,2]
[344844085,1733829038651,-500.0,0.00010958,2]
[344844086,1733829038661,-174.46097168,0.00010958,2]
[344844087,1733829038671,-500.0,0.00010958,2]
[344844088,1733829038681,-180.15183855,0.00010958,2]
[344844089,1733829038691,-630.66609004,0.00010958,2]
[344844090,1733829038703,-500.0,0.00010958,2]
[344844091,1733829038715,-500.0,0.00010958,2]
[344844092,1733829038726,-500.0,0.00010958,2]
[344844093,1733829038736,-500.0,0.00010958,2]
[344844094,1733829038746,-500.0,0.00010958,2]
[344844095,1733829038756,-500.0,0.00010958,2]
[344844096,1733829038767,-500.0,0.00010958,2]
[344844097,1733829038777,-150.0,0.00010958,2]
[344844098,1733829038788,-5000.0,0.00010958,2]
[344844099,1733829038798,-500.0,0.00010958,2]
[344844100,1733829038807,-500.0,0.00010958,2]
[344844101,1733829038817,-555.79,0.00010958,2]
[344844102,1733829038827,-500.0,0.00010958,2]
[344844103,1733829038836,-608.57,0.00010958,2]
[344844104,1733829038846,-500.0,0.00010958,2]
[344844105,1733829038855,-500.0,0.00010958,2]
[344844106,1733829038865,-500.0,0.00010958,2]
[344844107,1733829038875,-502.46664801,0.00010958,2]
[344844108,1733829038885,-500.0,0.00010958,2]
[344844109,1733829038894,-500.0,0.00010958,2]
[344844110,1733829038913,-500.0,0.00010958,2]
[344844111,1733829038923,-500.0,0.00010958,2]
[344844112,1733829038935,-566.43,0.00010958,2]
[344844113,1733829038950,-500.0,0.00010958,2]
[344844114,1733829038961,-500.0,0.00010958,2]
[344844115,1733829038971,-500.0,0.00010958,2]
[344844116,1733829038983,-500.0,0.00010958,2]
[344844117,1733829038994,-500.0,0.00010958,2]
[344844118,1733829039004,-172.4447728,0.00010958,2]
[344844119,1733829039015,-500.0,0.00010958,2]
[344844120,1733829039025,-500.0,0.00010958,2]
[344844121,1733829039035,-500.0,0.00010958,2]
[344844122,1733829039045,-500.0,0.00010958,2]
[344844123,1733829039055,-521.76480912,0.00010958,2]
[344844124,1733829039066,-500.0,0.00010958,2]
[344844125,1733829039075,-500.0,0.00010958,2]
[344844126,1733829039085,-500.0,0.00010958,2]
[344844127,1733829039096,-500.0,0.00010958,2]
[344844128,1733829039106,-500.0,0.00010958,2]
[344844129,1733829039116,-500.0,0.00010958,2]
[344844130,1733829039126,-500.0,0.00010958,2]
[344844131,1733829039136,-500.0,0.00010958,2]
[344844132,1733829039146,-561.56,0.00010958,2]
[344844133,1733829039165,-500.0,0.00010958,2]
[344844134,1733829039175,-2595.03,0.00010958,2]
[344844135,1733829039185,-628.45,0.00010958,2]
[344844136,1733829039195,-500.0,0.00010958,2]
[344844137,1733829039205,-500.0,0.00010958,2]
[344844138,1733829039215,-500.0,0.00010958,2]
[344844139,1733829039225,-963.3,0.00010958,2]
[344844140,1733829039235,-500.0,0.00010958,2]
[344844141,1733829039245,-500.0,0.00010958,2]
[344844142,1733829039255,-500.0,0.00010958,2]
[344844143,1733829039265,-500.0,0.00010958,2]
[344844144,1733829039274,-500.0,0.00010958,2]
[344844145,1733829039285,-500.0,0.00010958,2]
[344844146,1733829039295,-519.97,0.00010958,2]
[344844147,1733829039304,-588.39,0.00010958,2]
[344844148,1733829039314,-733.06,0.00010958,2]
[344844149,1733829039324,-500.52691432,0.00010958,2]
[344844150,1733829039334,-500.0,0.00010958,2]
[344844151,1733829039343,-515.41,0.00010958,2]
[344844152,1733829039352,-500.0,0.00010958,2]
[344844154,1733829039361,-500.0,0.00010958,2]
[344844155,1733829039371,-39042.0,0.00010959,2]
[344844156,1733829039381,-952.0,0.00010959,2]
[344844157,1733829039390,-357.5871977,0.00010967,2]
[344844158,1733829039404,-1435.88171651,0.00010969,2]
[344844159,1733829039414,-1164.5921683,0.00010969,2]
[344844160,1733829039424,-17777.84485276,0.00010969,2]
[344844161,1733829039434,-18093.80181104,0.00010969,2]
[344844162,1733829039444,-248.51798938,0.0001097,2]
[344844163,1733829039455,-357.5871977,0.0001097,2]
[344844164,1733829039465,-200.0,0.0001097,2]
[344844165,1733829039475,-18093.80181104,0.00010972,2]
[344844166,1733829039486,-229.13684399,0.00010973,2]
[344844167,1733829039496,-500.0,0.00010973,2]
[344844168,1733829039506,-500.0,0.00010973,2]
[344844169,1733829039515,-1435.88171651,0.00010973,2]
[344844170,1733829039525,-11234.02518342,0.00010975,2]
[344844171,1733829039535,-18093.80181104,0.00010975,2]
[344844172,1733829039544,-17777.84485276,0.00010975,2]
[344844173,1733829039553,-357.5871977,0.00010975,2]
[344844174,1733829039563,-18093.80181104,0.00010976,2]
[344844175,1733829039572,-1164.5921683,0.00010977,2]
[344844176,1733829039582,-11234.02518342,0.00010977,2]
[344844177,1733829039591,-264.29290767,0.00010978,2]
[344844178,1733829039601,-1435.88171651,0.00010978,2]
[344844179,1733829039611,-357.5871977,0.00010978,2]
[344844180,1733829039620,-18093.80181104,0.00010979,2]
[344844181,1733829039630,-264.29290767,0.0001098,2]
[344844182,1733829039640,-1435.88171651,0.0001098,2]
[344844183,1733829039654,-1047.25276189,0.0001098,2]
[344844184,1733829039666,-17777.84485276,0.0001098,2]
[344844185,1733829039676,-1047.25276189,0.0001098,2]
[344844186,1733829039687,-17777.84485276,0.00010982,2]
[344844187,1733829039696,-17777.84485276,0.00010982,2]
[344844188,1733829039706,-200.0,0.00010983,2]
[344844189,1733829039717,-1435.88171651,0.00010983,2]
[344844190,1733829039727,-357.5871977,0.00010983,2]
[344844191,1733829039737,-11234.02518342,0.00010983,2]
[344844192,1733829039747,-11234.02518342,0.00010983,2]
[344844193,1733829039757,-1164.5921683,0.00010984,2]
[344844194,1733829039766,-200.0,0.00010984,2]
[344844195,1733829039776,-425.65453832,0.00010984,2]
[344844196,1733829039785,-425.65453832,0.00010985,2]
[344844197,1733829039795,-1435.88171651,0.00010986,2]
[344844198,1733829039806,-11234.02518342,0.00010987,2]
[344844199,1733829039816,-500.0,0.00010987,2]
[344844200,1733829039825,-264.29290767,0.00010987,2]
[344844201,1733829039835,-248.51798938,0.00010988,2]
[344844202,1733829039844,-11234.02518342,0.00010988,2]
[344844203,1733829039853,-1470.84354283,0.00010988,2]
[344844204,1733829039862,-394.11662365,0.00010988,2]
[344844205,1733829039872,-605.90130465,0.00010988,2]
[344844206,1733829039882,-503.9537927,0.00010988,2]
[344844207,1733829039892,-158.94284277,0.00010988,2]
[344844208,1733829039903,-500.0,0.00010988,2]
[344844209,1733829039913,-500.0,0.00010988,2]
[344844210,1733829039922,-500.0,0.00010988,2]
[344844211,1733829039933,-500.0,0.00010988,2]
[344844212,1733829039944,-500.0,0.00010988,2]
[344844213,1733829039954,-500.0,0.00010988,2]
[344844214,1733829039965,-500.0,0.00010988,2]
[344844215,1733829039974,-500.0,0.00010988,2]
[344844216,1733829039986,-500.0,0.00010988,2]
[344844217,1733829039996,-500.0,0.00010988,2]
[344844218,1733829040006,-500.0,0.00010988,2]
[344844219,1733829040016,-500.0,0.00010988,2]
[344844220,1733829040027,-500.0,0.00010988,2]
[344844221,1733829040037,-500.0,0.00010988,2]
[344844222,1733829040047,-504.94401939,0.00010988,2]
[344844223,1733829040057,-500.0,0.00010988,2]